bitfinex/quotes_SOLUSD_20250724
["timestamp","ask_amount","ask_price","bid_price","bid_amount"]
[1753341902727,9.36288865,183.73,183.68,8.54948865]
[1753341903047,13.26240451,183.73,183.68,8.54948865]
[1753341903349,8.50948865,183.72,183.68,0.06]
[1753341903649,7.81948865,183.71,183.68,0.06]
[1753341904848,7.81948865,183.69,183.68,0.06]
[1753341905349,8.50948865,183.69,183.68,0.06]
[1753341906336,13.95344313,183.69,183.68,0.06]
[1753341906549,20.61324313,183.69,183.68,0.06]
[1753341908126,34.22312935,183.69,183.64,0.06]
[1753341908331,7.81948865,183.65,183.64,0.06]
[1753341908562,13.26462886,183.65,183.64,0.06]
[1753341908937,13.26462886,183.65,183.62,0.06]
[1753341908938,13.95462886,183.65,183.62,0.06]
[1753341909137,7.81948865,183.63,183.62,0.06]
[1753341909346,7.81948865,183.63,183.58,0.06]
[1753341909562,7.81948865,183.59,183.58,0.06]
[1753341910064,8.50948865,183.59,183.58,0.06]
[1753341910272,17.9694773,183.59,183.56,0.06]
[1753341910436,13.26759543,183.55,183.5,0.06]
[1753341910640,7.81948865,183.51,183.5,0.06]
[1753341911245,8.50948865,183.51,183.5,0.06]
[1753341912356,8.50948865,183.51,183.46,0.06]
[1753341912697,7.81948865,183.47,183.46,0.06]
[1753341913345,8.50948865,183.47,183.46,0.06]
[1753341914665,13.95997101,183.47,183.46,0.06]
[1753341915071,7.81948865,183.49,183.46,0.06]
[1753341915275,5.44810678,183.55,183.47,7.81948865]
[1753341915457,7.81948865,183.54,183.48,0.68]
[1753341915651,7.81948865,183.54,183.49,7.81948865]
[1753341915848,13.26759543,183.55,183.49,8.49948865]
[1753341916155,7.81948865,183.54,183.49,0.68]
[1753341916358,5.44810678,183.55,183.49,8.49948865]
[1753341916557,13.26727294,183.57,183.51,7.81948865]
[1753341916751,5.44778429,183.57,183.51,8.49948865]
[1753341916946,5.44778429,183.57,183.52,8.49948865]
[1753341917171,13.26611174,183.6,183.54,7.81948865]
[1753341917465,7.81948865,183.56,183.5,8.49948865]
[1753341917686,7.81948865,183.56,183.5,49.67948865]
[1753341917859,5.44662309,183.6,183.51,0.68]
[1753341918055,5.44662309,183.6,183.55,7.81948865]
[1753341918256,13.26611174,183.6,183.55,8.49948865]
[1753341918454,5.44602984,183.62,183.56,8.49948865]
[1753341918857,7.81948865,183.61,183.56,0.68]
[1753341919377,7.81948865,183.6,183.56,0.68]
[1753341919555,7.81948865,183.61,183.56,0.68]
[1753341920074,5.44691976,183.59,183.56,0.68]
[1753341920277,5.44691976,183.59,183.54,7.81948865]
[1753341920465,5.44691976,183.59,183.55,0.68]
[1753341920772,5.44691976,183.59,183.5,41.18]
[1753341920773,7.81948865,183.56,183.5,41.18]
[1753341921149,7.81948865,183.56,183.5,48.99948865]
[1753341921356,0.03,183.57,183.53,7.81948865]
[1753341921655,0.03,183.57,183.52,7.81948865]
[1753341921862,0.03,183.57,183.53,0.68]
[1753341922174,5.47751321,183.57,183.53,0.68]
[1753341922957,7.81948865,183.55,183.5,41.18]
[1753341923169,7.81948865,183.54,183.5,41.18]
[1753341923360,7.81948865,183.56,183.51,0.68]
[1753341923964,7.81948865,183.54,183.5,41.18]
[1753341924164,13.29700186,183.57,183.52,7.81948865]
[1753341924372,13.29700186,183.57,183.52,8.49948865]
[1753341924569,7.81948865,183.56,183.5,48.99948865]
[1753341924763,7.81948865,183.55,183.5,48.99948865]
[1753341924964,7.81948865,183.55,183.5,49.67948865]
[1753341925176,7.81948865,183.54,183.5,41.18]
[1753341925685,7.68931321,183.57,183.51,0.68]
[1753341925980,7.81948865,183.56,183.51,0.68]
[1753341926379,5.44810678,183.55,183.51,0.68]
[1753341926683,2.2418,183.57,183.52,0.68]
[1753341926684,7.84948865,183.57,183.52,0.68]
[1753341926981,7.84948865,183.57,183.51,7.81948865]
[1753341926982,13.29707303,183.57,183.51,7.81948865]
[1753341927712,0.03,183.57,183.55,7.81948865]
[1753341927882,0.03,183.57,183.56,8.49948865]
[1753341928090,0.03,183.57,183.56,0.68]
[1753341928277,0.03,183.57,183.54,7.81948865]
[1753341928466,0.03,183.57,183.53,8.49948865]
[1753341928661,0.03,183.57,183.53,48.95948865]
[1753341928863,8.53948865,183.57,183.53,41.14]
[1753341929084,8.50948865,183.56,183.53,41.14]
[1753341929287,7.81948865,183.55,183.5,0.68]
[1753341929599,0.69,183.56,183.52,7.81948865]
[1753341929763,0.03,183.57,183.53,8.49948865]
[1753341929963,0.03,183.57,183.52,7.81948865]
[1753341930374,0.03,183.57,183.54,7.81948865]
[1753341930683,0.03,183.57,183.55,8.49948865]
[1753341930883,0.03,183.57,183.56,0.68]
[1753341931076,0.03,183.57,183.55,7.81948865]
[1753341931472,0.03,183.57,183.56,8.49948865]
[1753341931980,0.03,183.57,183.54,41.12]
[1753341932487,0.03,183.57,183.54,48.93948865]
[1753341933083,0.03,183.57,183.55,8.49948865]
[1753341933469,0.03,183.57,183.55,7.81948865]
[1753341933978,0.03,183.57,183.55,8.49948865]
[1753341934180,0.03,183.57,183.55,7.81948865]
[1753341934492,0.03,183.57,183.54,48.93948865]
[1753341934870,0.03,183.57,183.54,48.91948865]
[1753341935075,0.03,183.57,183.54,41.1]
[1753341935375,0.03,183.57,183.55,0.68]
[1753341935967,0.03,183.57,183.54,48.91948865]
[1753341936266,0.03,183.57,183.54,41.1]
[1753341936473,6.16751321,183.57,183.54,41.1]
[1753341936880,6.16751321,183.57,183.52,48.91948865]
[1753341937188,8.50948865,183.56,183.52,41.1]
[1753341937672,0.03,183.57,183.55,7.81948865]
[1753341937872,0.03,183.57,183.56,0.68]
[1753341938072,0.03,183.57,183.56,8.49948865]
[1753341939686,0.03,183.57,183.55,0.54481067]
[1753341939891,0.03,183.57,183.53,8.49948865]
[1753341940094,0.03,183.57,183.55,7.81948865]
[1753341940396,0.03,183.57,183.53,7.81948865]
[1753341940592,0.03,183.57,183.53,48.89948865]
[1753341940774,0.03,183.57,183.55,7.81948865]
[1753341941391,0.03,183.57,183.54,7.81948865]
[1753341941584,0.03,183.57,183.53,49.57948865]
[1753341941976,0.03,183.57,183.53,48.89948865]
[1753341942174,7.81948865,183.55,183.5,7.81948865]
[1753341942380,8.50948865,183.55,183.5,48.87948865]
[1753341942679,6.13840361,183.54,183.5,41.12]
[1753341942877,0.72,183.57,183.52,7.81948865]
[1753341943190,7.81948865,183.55,183.5,41.12]
[1753341943491,8.48948865,183.55,183.5,41.12]
[1753341943990,8.48948865,183.54,183.5,41.12]
[1753341944577,7.81948865,183.54,183.5,41.12]
[1753341944778,5.44870048,183.53,183.5,41.12]
[1753341945469,5.44843946,183.54,183.5,41.12]
[1753341945680,5.44815522,183.55,183.51,0.7]
[1753341946197,5.44815522,183.55,183.51,8.51948865]
[1753341946395,1.5521,183.56,183.52,7.81948865]
[1753341946595,0.03,183.57,183.55,7.81948865]
[1753341946799,0.03,183.57,183.56,7.81948865]
[1753341946998,0.03,183.57,183.56,8.51948865]
[1753341947170,0.03,183.57,183.56,13.96729863]
[1753341947786,0.03,183.57,183.56,7.81948865]
[1753341948293,0.03,183.57,183.56,8.51948865]
[1753341949587,0.03,183.57,183.56,30.7519826]
[1753341952979,0.03,183.57,183.56,13.96729863]
[1753341953176,0.03,183.57,183.56,30.7519826]
[1753341954610,0.03,183.61,183.6,42.78468397]
[1753341954787,0.03,183.61,183.6,91.62417262]
[1753341955095,0.03,183.61,183.6,92.84883492]
[1753341955305,0.03,183.61,183.6,35.06415095]
[1753341955480,0.03,183.61,183.6,76.06415095]
[1753341956105,0.03,183.61,183.6,74.81948865]
[1753341956485,0.03,183.61,183.6,80.26611174]
[1753341956700,0.03,183.61,183.6,80.96611174]
[1753341957201,0.03,183.61,183.6,41.0]
[1753341957794,0.7,183.61,183.6,41.0]
[1753341958392,7.2681,183.61,183.55,0.7]
[1753341958600,1.5308,183.54,183.5,0.06]
[1753341958779,7.81948865,183.51,183.5,0.06]
[1753341959104,7.81948865,183.51,183.43,0.2]
[1753341959288,8.48948865,183.5,183.43,0.2]
[1753341959681,8.48948865,183.5,183.49,1e-08]
[1753341959883,6.1079,183.49,183.43,0.2]
[1753341960086,7.81948865,183.47,183.43,0.2]
[1753341960281,7.81948865,183.46,183.43,0.2]
[1753341960508,13.94026811,183.46,183.43,0.2]
[1753341963025,8.48948865,183.49,183.43,8.01948865]
[1753341963205,5.4501853,183.48,183.43,8.01948865]
[1753341963603,6.1201853,183.48,183.43,8.01948865]
[1753341963802,0.67,183.47,183.43,0.2]
[1753341964323,13.26967395,183.48,183.43,0.2]
[1753341964514,0.67,183.46,183.43,0.2]
[1753341964825,13.94026811,183.46,183.43,0.2]
[1753341965513,8.48948865,183.46,183.43,0.2]
[1753341966021,13.93956155,183.49,183.43,8.01948865]
[1753341966217,7.81948865,183.48,183.43,0.2]
[1753341966423,7.81948865,183.47,183.43,0.2]
[1753341966724,13.94000487,183.47,183.43,0.2]
[1753341967094,8.48948865,183.47,183.43,0.2]
[1753341967391,6.14963417,183.5,183.43,13.47113653]
[1753341967593,7.81948865,183.48,183.43,8.01948865]
[1753341967811,7.81948865,183.48,183.43,0.2]
[1753341968011,8.48948865,183.48,183.43,0.2]
[1753341968216,7.81948865,183.48,183.43,8.01948865]
[1753341968425,8.48948865,183.48,183.43,8.01948865]
[1753341968802,7.81948865,183.47,183.43,0.2]
[1753341969007,8.48948865,183.47,183.43,0.2]
[1753341969205,0.03,183.5,183.43,8.01948865]
[1753341969518,0.03,183.5,183.48,7.81948865]
[1753341970115,0.03,183.5,183.45,5.65106449]
[1753341970317,6.14969398,183.5,183.46,7.81948865]
[1753341970499,0.7,183.5,183.47,7.81948865]
[1753341970701,0.03,183.5,183.47,7.81948865]
[1753341970912,0.03,183.5,183.49,7.81948865]
[1753341971114,0.03,183.5,183.48,7.81948865]
[1753341971494,0.03,183.5,183.45,0.2]
[1753341971692,0.03,183.5,183.47,7.81948865]
[1753341972713,0.03,183.5,183.48,7.81948865]
[1753341972904,0.03,183.5,183.49,7.81948865]
[1753341973310,0.03,183.5,183.49,118.57406089]
[1753341973621,0.03,183.54,183.5,16.78468397]
[1753341973820,0.03,183.54,183.53,7.81948865]
[1753341974022,0.03,183.54,183.5,0.54495912]
[1753341974225,7.81948865,183.51,183.46,7.81948865]
[1753341974411,7.81948865,183.51,183.46,48.77948865]
[1753341974607,7.84948865,183.54,183.49,7.81948865]
[1753341974813,0.03,183.54,183.49,7.81948865]
[1753341975012,0.03,183.54,183.5,7.81948865]
[1753341975211,0.03,183.54,183.49,7.81948865]
[1753341975415,0.03,183.54,183.48,7.81948865]
[1753341975416,7.84948865,183.54,183.48,7.81948865]
[1753341976325,0.03,183.54,183.49,7.81948865]
[1753341976724,13.98804641,183.54,183.49,7.81948865]
[1753341977824,0.03,183.54,183.5,7.81948865]
[1753341978030,0.03,183.54,183.51,7.81948865]
[1753341978214,0.03,183.54,183.52,7.81948865]
[1753341978611,0.03,183.54,183.51,48.75948865]
[1753341980421,0.03,183.54,183.51,40.94]
[1753341980716,0.03,183.54,183.47,16.78468397]
[1753341980717,26.0,183.49,183.38,0.06]
[1753341980916,7.81948865,183.43,183.38,0.06]
[1753341981106,1.5638,183.41,183.38,0.06]
[1753341981306,7.81948865,183.39,183.38,0.06]
[1753341981714,8.50948865,183.39,183.38,0.06]
[1753341982520,9.92830718,183.41,183.38,0.06]
[1753341982923,5.4525627,183.4,183.38,0.06]
[1753341983835,2.79881853,183.41,183.38,0.06]
[1753341984127,6.68743298,183.41,183.38,0.06]
[1753341984312,5.45241445,183.41,183.38,0.06]
[1753341984521,1.23501853,183.44,183.4,7.81948865]
[1753341984709,0.69,183.43,183.39,7.81948865]
[1753341984914,6.1417925,183.43,183.39,7.81948865]
[1753341985530,6.1417925,183.43,183.38,0.06]
[1753341985722,9.05450718,183.42,183.38,0.06]
[1753341986036,7.81948865,183.4,183.38,0.06]
[1753341986219,0.54501853,183.39,183.38,0.06]
[1753341986413,1.23501853,183.39,183.38,0.06]
[1753341987021,14.5073672,183.39,183.38,0.06]
[1753341989140,14.5073672,183.39,183.37,0.06]
[1753341989311,8.50948865,183.38,183.37,1e-08]
[1753341990228,0.69,183.38,183.37,1e-08]
[1753341991124,13.96264602,183.38,183.35,0.2]
[1753341991327,7.81948865,183.36,183.35,0.2]
[1753341991543,1.23501853,183.37,183.35,0.2]
[1753341991914,9.05450718,183.37,183.35,0.2]
[1753341992722,13.81766455,183.38,183.35,0.2]
[1753341992924,5.9981759,183.38,183.35,0.2]
[1753341993424,6.6881759,183.38,183.35,0.2]
[1753341994530,14.50766455,183.38,183.35,0.2]
[1753341995742,5.9981759,183.38,183.35,0.2]
[1753341996039,0.54501853,183.42,183.37,7.81948865]
[1753341996336,1.23501853,183.42,183.38,7.81948865]
[1753341997129,5.45220272,183.42,183.38,7.81948865]
[1753342000658,2.2951,183.46,183.41,7.81948865]
[1753342000822,2.84011853,183.46,183.41,7.81948865]
[1753342001248,0.54501853,183.47,183.43,7.81948865]
[1753342001628,1.23501853,183.47,183.43,7.81948865]
[1753342002221,5.45077946,183.46,183.42,7.81948865]
[1753342002520,5.45077946,183.46,183.41,0.66]
[1753342002521,6.14077946,183.46,183.41,7.81948865]
[1753342002718,6.14077946,183.46,183.39,66.92]
[1753342002719,8.36450718,183.45,183.39,26.0]
[1753342002914,8.36450718,183.45,183.38,16.78468397]
[1753342002915,7.81948865,183.43,183.38,7.81948865]
[1753342003136,7.81948865,183.45,183.39,7.81948865]
[1753342003444,0.54501853,183.45,183.4,7.81948865]
[1753342003619,0.54501853,183.45,183.41,7.81948865]
[1753342003826,0.54501853,183.51,183.44,7.81948865]
[1753342004024,2.17581853,183.52,183.47,7.81948865]
[1753342004242,2.17581853,183.52,183.49,7.81948865]
[1753342004539,7.62490217,183.52,183.48,7.81948865]
[1753342004743,0.66,183.51,183.47,7.81948865]
[1753342005052,0.66,183.5,183.46,7.81948865]
[1753342005349,9.02450718,183.49,183.43,74.73948865]
[1753342005733,9.02450718,183.49,183.44,7.81948865]
[1753342006130,0.66,183.48,183.43,33.81948865]
[1753342006344,8.36450718,183.49,183.45,7.81948865]
[1753342006345,0.54501853,183.49,183.45,7.81948865]
[1753342006551,0.66,183.51,183.47,7.81948865]
[1753342006843,9.99530718,183.52,183.43,26.0]
[1753342006844,1.20501853,183.5,183.43,26.0]
[1753342007146,7.81948865,183.49,183.44,7.81948865]
[1753342007522,8.47948865,183.49,183.44,7.81948865]
[1753342008450,13.92959778,183.49,183.44,7.81948865]
[1753342009146,5.45010913,183.49,183.44,8.50948865]
[1753342009740,6.11010913,183.49,183.44,7.81948865]
[1753342009944,0.57501853,183.51,183.46,7.81948865]
[1753342010138,5.44968898,183.5,183.46,7.81948865]
[1753342010320,5.44968898,183.5,183.47,7.81948865]
[1753342010722,5.44968898,183.5,183.47,48.71948865]
[1753342011138,0.03,183.51,183.47,40.9]
[1753342011139,5.47929431,183.51,183.47,40.9]
[1753342011329,5.47929431,183.51,183.47,48.71948865]
[1753342011535,6.13929431,183.51,183.47,48.71948865]
[1753342011741,0.03,183.51,183.47,41.59]
[1753342011938,0.03,183.51,183.48,24.60417262]
[1753342012122,0.03,183.51,183.47,40.9]
[1753342012123,0.03,183.51,183.5,7.81948865]
[1753342014224,8.50948865,183.51,183.46,24.60417262]
[1753342014439,0.66,183.5,183.47,40.9]
[1753342014838,0.66,183.5,183.46,7.81948865]
[1753342015040,0.66,183.5,183.46,40.88]
[1753342015041,8.47948865,183.5,183.46,40.88]
[1753342015251,0.66,183.5,183.46,40.88]
[1753342015460,6.10971637,183.5,183.46,48.69948865]
[1753342015658,0.03,183.51,183.48,7.81948865]
[1753342016759,0.03,183.51,183.5,7.81948865]
[1753342017049,0.03,183.51,183.5,48.69948865]
[1753342017349,0.03,183.51,183.5,40.88]
[1753342017536,0.03,183.51,183.46,6.14065597]
[1753342017537,8.50948865,183.51,183.48,40.88]
[1753342017851,0.03,183.51,183.48,40.88]
[1753342018038,0.69,183.51,183.48,40.88]
[1753342018648,8.50948865,183.51,183.48,40.88]
[1753342018840,7.81948865,183.49,183.43,7.81948865]
[1753342019039,1.20501853,183.5,183.38,94.3194]
[1753342019040,8.47948865,183.48,183.44,40.88]
[1753342019648,5.45048236,183.47,183.44,40.88]
[1753342020227,0.66,183.46,183.44,40.88]
[1753342020428,5.45048236,183.47,183.4,16.78468397]
[1753342020429,8.47948865,183.45,183.4,24.60417262]
[1753342020626,8.47948865,183.45,183.41,40.88]
[1753342020826,7.81948865,183.42,183.35,0.2]
[1753342021026,7.81948865,183.39,183.35,0.2]
[1753342021248,7.81948865,183.38,183.35,0.2]
[1753342021457,8.47948865,183.38,183.35,0.2]
[1753342021656,6.11330653,183.38,183.35,0.2]
[1753342021960,7.81948865,183.36,183.35,0.2]
[1753342022153,7.81948865,183.37,183.35,0.2]
[1753342022456,16.14401371,183.38,183.35,0.2]
[1753342022630,7.81948865,183.37,183.35,0.2]
[1753342022831,8.47948865,183.37,183.35,0.2]
[1753342023027,7.66452506,183.38,183.35,0.2]
[1753342023028,9.02450718,183.36,183.35,0.2]
[1753342023270,8.47948865,183.36,183.35,0.2]
[1753342023630,14.93899518,183.38,183.35,0.2]
[1753342024038,7.77950653,183.38,183.35,0.2]
[1753342024247,8.47948865,183.37,183.35,0.2]
[1753342025752,13.93297234,183.37,183.35,0.2]
[1753342025962,8.47948865,183.36,183.35,0.2]
[1753342027849,6.11375218,183.36,183.35,0.2]
[1753342028045,10.03070718,183.38,183.35,0.2]
[1753342028344,1.6662,183.38,183.35,0.2]
[1753342028544,14.93891286,183.38,183.35,0.2]
[1753342028745,15.59891286,183.38,183.35,0.2]
[1753342028954,0.66,183.37,183.35,0.2]
[1753342029462,14.93891286,183.38,183.35,0.2]
[1753342029965,7.81948865,183.36,183.35,0.2]
[1753342030463,8.47948865,183.36,183.35,0.2]
[1753342031739,7.81948865,183.36,183.35,0.2]
[1753342031969,13.27324083,183.36,183.35,0.2]
[1753342032149,13.93324083,183.36,183.35,0.2]
[1753342033568,13.93324083,183.36,183.34,1e-08]
[1753342033569,54.79324083,183.36,183.34,1e-08]
[1753342033766,14.47855681,183.35,183.34,1e-08]
[1753342034265,40.47855681,183.35,183.34,1e-08]
[1753342034644,26.0,183.33,183.31,0.2]
[1753342034844,8.1249,183.31,183.3,1e-08]
[1753342035153,15.94438865,183.31,183.3,1e-08]
[1753342035661,16.60438865,183.31,183.3,1e-08]
[1753342035857,62.9196284,183.31,183.3,1e-08]
[1753342036563,79.70431237,183.31,183.3,1e-08]
[1753342037073,26.0,183.28,183.26,0.2]
[1753342037370,33.81948865,183.28,183.26,0.2]
[1753342037570,34.47948865,183.28,183.26,0.2]
[1753342038266,39.93562134,183.28,183.26,0.2]
[1753342039171,0.54501853,183.27,183.26,0.2]
[1753342039352,13.27562134,183.28,183.26,0.2]
[1753342039758,7.81948865,183.27,183.26,0.2]
[1753342039957,8.36450718,183.27,183.26,0.2]
[1753342040289,14.48093758,183.27,183.26,0.2]
[1753342040858,13.82093758,183.27,183.26,0.2]
[1753342041057,13.93591905,183.27,183.26,0.2]
[1753342041774,13.27591905,183.27,183.26,0.2]
[1753342041948,0.54501853,183.29,183.26,0.2]
[1753342041949,13.82045366,183.29,183.26,0.2]
[1753342042276,13.27591905,183.27,183.26,0.2]
[1753342042449,13.82093758,183.27,183.26,0.2]
[1753342042853,7.81948865,183.28,183.26,0.2]
[1753342043171,0.54501853,183.29,183.26,0.2]
[1753342043472,7.81948865,183.29,183.26,0.2]
[1753342044667,5.45613269,183.28,183.26,0.2]
[1753342045168,8.47948865,183.3,183.26,0.2]
[1753342045360,5.45563336,183.3,183.26,8.70948865]
[1753342045545,8.36450718,183.33,183.28,7.81948865]
[1753342045748,2.08661853,183.35,183.3,7.81948865]
[1753342045969,7.81948865,183.36,183.31,7.81948865]
[1753342046171,7.81948865,183.36,183.3,0.69]
[1753342046172,1.20501853,183.35,183.3,7.81948865]
[1753342046370,9.02450718,183.35,183.3,7.81948865]
[1753342046870,5.99914264,183.35,183.31,7.81948865]
[1753342047072,5.99914264,183.35,183.31,8.50948865]
[1753342047374,7.84948865,183.38,183.33,7.81948865]
[1753342047570,7.84948865,183.38,183.33,8.50948865]
[1753342047571,5.4535412,183.37,183.33,8.50948865]
[1753342047757,5.48324495,183.38,183.33,8.50948865]
[1753342047957,5.48324495,183.38,183.33,0.69]
[1753342048157,5.48324495,183.38,183.31,48.65948865]
[1753342048158,7.81948865,183.36,183.31,48.65948865]
[1753342048360,9.02450718,183.37,183.31,49.34948865]
[1753342048676,9.02450718,183.37,183.32,7.81948865]
[1753342049269,5.45375218,183.36,183.32,7.81948865]
[1753342049678,5.45375218,183.36,183.32,8.50948865]
[1753342050477,9.02450718,183.35,183.3,7.81948865]
[1753342051057,5.45434711,183.34,183.3,7.81948865]
[1753342051382,0.03,183.38,183.33,7.81948865]
[1753342051554,0.03,183.38,183.36,7.81948865]
[1753342051960,5.48321059,183.38,183.36,7.81948865]
[1753342052268,0.03,183.38,183.37,8.50948865]
[1753342053561,0.03,183.38,183.37,7.81948865]
[1753342054377,0.03,183.38,183.34,0.54543471]
[1753342054570,0.03,183.38,183.34,48.63948865]
[1753342054776,0.03,183.38,183.35,7.81948865]
[1753342055082,0.03,183.38,183.36,7.81948865]
[1753342055260,0.03,183.38,183.37,7.81948865]
[1753342055461,0.03,183.38,183.37,25.29417262]
[1753342056483,0.03,183.38,183.34,129.71]
[1753342056777,0.03,183.38,183.35,48.61948865]
[1753342057368,0.03,183.38,183.35,49.30948865]
[1753342057777,0.03,183.38,183.35,48.61948865]
[1753342057972,0.03,183.38,183.32,22.92955462]
[1753342058174,0.03,183.38,183.33,48.61948865]
[1753342058479,0.03,183.38,183.33,40.8]
[1753342058480,7.84948865,183.38,183.33,40.8]
[1753342058683,8.50948865,183.38,183.33,48.61948865]
[1753342059264,5.45345476,183.37,183.33,7.81948865]
[1753342059469,5.45345476,183.37,183.33,48.59948865]
[1753342059661,0.03,183.38,183.35,7.81948865]
[1753342059877,0.03,183.38,183.37,7.81948865]
[1753342060088,0.03,183.38,183.37,48.59948865]
[1753342060386,0.03,183.38,183.37,66.61951809]
[1753342060586,0.03,183.38,183.37,66.07417262]
[1753342061492,0.03,183.38,183.37,71.52762738]
[1753342061990,0.03,183.38,183.37,86.5372615]
[1753342062199,0.03,183.38,183.37,78.71777285]
[1753342062972,0.03,183.38,183.37,86.5372615]
[1753342063700,0.03,183.42,183.41,42.78468397]
[1753342063866,0.03,183.42,183.41,91.92939916]
[1753342064070,0.03,183.42,183.41,92.60939916]
[1753342065488,0.03,183.42,183.41,98.06166457]
[1753342065880,0.03,183.42,183.41,57.28166457]
[1753342066079,0.03,183.42,183.41,98.04166457]
[1753342066268,0.03,183.42,183.41,92.58939916]
[1753342066468,0.03,183.42,183.41,84.76991051]
[1753342066692,26.7,183.42,183.27,8.8347]
[1753342066896,7.81948865,183.31,183.26,8.01948865]
[1753342067093,6.0437,183.34,183.26,0.2]
[1753342067275,13.2747284,183.31,183.28,40.76]
[1753342067473,13.9447284,183.31,183.28,40.76]
[1753342067680,13.9447284,183.31,183.26,40.94]
[1753342069480,14.48974693,183.31,183.26,40.94]
[1753342070491,7.81948865,183.27,183.26,40.94]
[1753342070697,8.48948865,183.27,183.26,0.2]
[1753342071293,13.94591905,183.27,183.26,0.2]
[1753342072099,22.31042623,183.27,183.26,0.2]
[1753342073088,14.49093758,183.27,183.26,0.2]
[1753342073276,13.94591905,183.27,183.26,0.2]
[1753342073589,7.81948865,183.27,183.26,0.2]
[1753342075787,13.94591905,183.27,183.26,0.2]
[1753342078799,13.27591905,183.27,183.26,0.2]
[1753342079404,13.94591905,183.27,183.26,0.2]
[1753342081008,13.27591905,183.27,183.26,0.2]
[1753342081214,13.94591905,183.27,183.26,0.2]
[1753342083903,0.54501853,183.3,183.26,0.2]
[1753342084102,7.81948865,183.27,183.26,0.2]
[1753342084490,13.27591905,183.27,183.26,0.2]
[1753342084685,13.94591905,183.27,183.26,0.2]
[1753342085595,13.27591905,183.27,183.26,0.2]
[1753342086988,7.81948865,183.27,183.26,0.2]
[1753342087813,7.81948865,183.28,183.26,0.2]
[1753342088113,7.81948865,183.27,183.26,0.2]
[1753342088412,5.45553737,183.3,183.26,0.2]
[1753342088621,6.12553737,183.3,183.26,0.2]
[1753342088792,7.81948865,183.27,183.26,0.2]
[1753342089100,5.45604119,183.29,183.26,0.2]
[1753342089302,5.45523975,183.31,183.26,0.88]
[1753342089509,6.12523975,183.31,183.26,0.2]
[1753342089699,7.81948865,183.28,183.26,0.2]
[1753342090287,7.81948865,183.29,183.26,0.2]
[1753342090492,7.81948865,183.29,183.26,0.88]
[1753342090921,5.45490547,183.33,183.27,18.01032701]
[1753342091208,15.90582531,183.36,183.27,18.01032701]
[1753342091209,7.81948865,183.31,183.27,18.01032701]
[1753342091415,13.27480735,183.31,183.28,0.68]
[1753342091588,5.4553187,183.31,183.28,0.68]
[1753342091790,13.27480735,183.31,183.27,16.78468397]
[1753342092212,13.27480735,183.31,183.27,17.46468397]
[1753342092638,5.45404963,183.35,183.29,16.78468397]
[1753342092916,7.60011602,183.36,183.29,16.78468397]
[1753342093218,7.81948865,183.34,183.31,16.78468397]
[1753342093388,7.81948865,183.33,183.32,40.7]
[1753342093988,35.04450718,183.33,183.26,0.2]
[1753342094197,7.81948865,183.27,183.26,0.2]
[1753342094415,7.81948865,183.29,183.26,16.98468397]
[1753342094726,7.81948865,183.29,183.27,0.69]
[1753342094923,7.81948865,183.29,183.26,16.98468397]
[1753342095111,7.81948865,183.29,183.27,0.69]
[1753342095419,7.81948865,183.28,183.26,0.2]
[1753342095602,0.03,183.31,183.27,41.37]
[1753342095802,0.03,183.31,183.28,17.47468397]
[1753342096007,7.84948865,183.31,183.28,17.47468397]
[1753342096207,0.03,183.31,183.28,17.47468397]
[1753342096607,7.81948865,183.3,183.27,40.68]
[1753342096789,7.81948865,183.29,183.27,40.68]
[1753342097210,7.81948865,183.3,183.27,40.68]
[1753342097413,7.81948865,183.28,183.26,0.2]
[1753342097614,7.81948865,183.27,183.26,0.2]
[1753342098997,13.27591905,183.27,183.26,0.2]